fUSD/lending_fUSD_20260626
["ID","MTS","AMOUNT","RATE_DAILY","PERIOD"]
[426478057,1782441041000,-150.0,0.00012054,2]
[426478056,1782441041000,-216.2,0.00011994,2]
[426478073,1782441042000,-500.0,0.00012298,2]
[426478071,1782441042000,-307.37906713,0.00012298,2]
[426478069,1782441042000,-500.0,0.00012298,2]
[426478072,1782441042000,-500.0,0.00012298,2]
[426478067,1782441042000,-528.93535276,0.00012298,2]
[426478066,1782441042000,-457.05121327,0.00012298,2]
[426478064,1782441042000,-641.64002057,0.00012298,2]
[426478063,1782441042000,-500.0,0.00012298,2]
[426478059,1782441042000,-218.237,0.00012201,2]
[426478061,1782441042000,-216.2,0.00012279,2]
[426478062,1782441042000,-500.0,0.00012298,2]
[426478068,1782441042000,-174.51253544,0.00012298,2]
[426478065,1782441042000,-42.94878673,0.00012298,2]
[426478070,1782441042000,-500.0,0.00012298,2]
[426478060,1782441042000,-1003.34564146,0.00012215,2]
[426478074,1782441042000,-500.0,0.00012298,2]
[426478084,1782441042000,-390.12869362,0.00012298,2]
[426478088,1782441042000,-2954.06929013,0.00012299,2]
[426478083,1782441042000,-500.0,0.00012298,2]
[426478085,1782441042000,-109.87130638,0.00012298,2]
[426478086,1782441042000,-8967.67735514,0.00012299,2]
[426478087,1782441042000,-1965.12334536,0.00012299,2]
[426478077,1782441042000,-500.0,0.00012298,2]
[426478081,1782441042000,-500.0,0.00012298,2]
[426478078,1782441042000,-500.0,0.00012298,2]
[426478075,1782441042000,-500.0,0.00012298,2]
[426478080,1782441042000,-585.7770024,0.00012298,2]
[426478079,1782441042000,-500.0,0.00012298,2]
[426478076,1782441042000,-500.0,0.00012298,2]
[426478082,1782441042000,-500.0,0.00012298,2]
[426478098,1782441043000,-115.86518103,0.00012299,2]
[426478099,1782441043000,-1972.69709367,0.00012299,2]
[426478102,1782441043000,-100.06491462,0.00012387,2]
[426478101,1782441043000,-670.96119487,0.00012387,2]
[426478100,1782441043000,-166.14,0.00012329,2]
[426478104,1782441043000,-155.06692576,0.00012565,2]
[426478105,1782441043000,-61.13307424,0.00012565,2]
[426478108,1782441043000,-3973.00103269,0.00013166,2]
[426478106,1782441043000,-15975.43226533,0.00012732,2]
[426478109,1782441043000,-512.48734177,0.00013166,2]
[426478107,1782441043000,-172.77,0.00013067,2]
[426478103,1782441043000,-433.0,0.0001254,2]
[426478112,1782441044000,-436.49002731,0.00013166,2]
[426478111,1782441044000,-150.0,0.00011029,2]
[426478114,1782441044000,-160.0,0.00011029,2]
[426478115,1782441044000,-506.82321564,0.00013166,2]
[426478113,1782441044000,-864.64,0.00013166,2]
[426478116,1782441045000,-2169.71405685,0.00013166,2]
[426478126,1782441046000,-994.53731118,0.00013599,2]
[426478127,1782441046000,-463.11319434,0.00013599,2]
[426478124,1782441046000,-200.0,0.00013231,2]
[426478125,1782441046000,-4264.77083856,0.0001353,2]
[426478128,1782441046000,-597.39434932,0.00013599,2]
[426478123,1782441046000,-4841.76094583,0.00013166,2]
[426478122,1782441046000,-2355.165,0.00013166,2]
[426478121,1782441046000,-315.35064524,0.00013166,2]
[426478198,1782441141000,150.0,9.784e-05,2]
[426478200,1782441173000,553.97,0.00037258,120]
[426478199,1782441173000,553.97,0.00037258,120]
[426478203,1782441174000,553.97,0.00037258,120]
[426478202,1782441174000,553.97,0.00037258,120]
[426478201,1782441174000,553.97,0.00037258,120]
[426478206,1782441175000,553.97,0.00037258,120]
[426478205,1782441175000,553.97,0.00037258,120]
[426478204,1782441175000,553.97,0.00037258,120]
[426478209,1782441176000,553.97,0.00037258,120]
[426478208,1782441176000,553.97,0.00037258,120]
[426478207,1782441176000,553.97,0.00037258,120]
[426478210,1782441177000,553.97,0.00037258,120]
[426478212,1782441177000,553.97,0.00037258,120]
[426478213,1782441177000,553.97,0.00037258,120]
[426478211,1782441177000,553.97,0.00037258,120]
[426478216,1782441178000,553.97,0.00037258,120]
[426478215,1782441178000,553.97,0.00037258,120]
[426478214,1782441178000,553.97,0.00037258,120]
[426478219,1782441179000,553.97,0.00037258,120]
[426478218,1782441179000,539.36604849,9.732e-05,2]
[426478217,1782441179000,553.97,0.00037258,120]
[426478220,1782441180000,553.97,0.00037258,120]
[426478223,1782441180000,554.18039178,0.00037258,120]
[426478222,1782441180000,553.97,0.00037258,120]
[426478221,1782441180000,553.97,0.00037258,120]
[426478224,1782441194000,1520.82,0.00037258,120]
[426478225,1782441201000,150.0,9.784e-05,2]
[426478226,1782441256000,2819.74,0.00037259,120]
[426478227,1782441297000,907.0,0.00037259,120]
[426478229,1782441655000,833.33,0.00037259,120]
[426478230,1782441656000,833.33,0.00037259,120]
[426478231,1782441656000,833.33,0.00037259,120]
[426478233,1782441656000,833.33,0.00037259,120]
[426478232,1782441656000,833.33,0.00037259,120]
[426478236,1782441657000,833.33,0.00037259,120]
[426478235,1782441657000,833.33,0.00037259,120]
[426478234,1782441657000,833.33,0.00037259,120]
[426478239,1782441658000,833.33,0.00037259,120]
[426478238,1782441658000,833.33,0.00037259,120]
[426478237,1782441658000,833.33,0.00037259,120]
[426478241,1782441659000,833.33,0.00037259,120]
[426478240,1782441659000,833.33,0.00037259,120]
[426478243,1782441659000,833.33,0.00037259,120]
[426478242,1782441659000,833.33,0.00037259,120]
[426478245,1782441660000,833.33,0.00037259,120]
[426478244,1782441660000,833.33,0.00037259,120]
[426478246,1782441660000,833.33,0.00037259,120]
[426478248,1782441661000,833.33,0.00037259,120]
[426478247,1782441661000,833.33,0.00037259,120]
[426478252,1782441662000,833.41,0.00037259,120]
[426478251,1782441662000,833.33,0.00037259,120]
[426478250,1782441662000,833.33,0.00037259,120]
[426478249,1782441662000,833.33,0.00037259,120]
[426478253,1782441691000,1020.26565707,9.74e-05,2]
[426478254,1782441692000,721.73019166,9.438e-05,2]
[426478255,1782441738000,684.90777074,9.74e-05,2]
[426478256,1782441739000,500.0318582,9.438e-05,2]
[426478257,1782441752000,5000.0,0.00037259,120]
[426478258,1782442152000,-188.52337,0.00010077,2]
[426478266,1782442164000,-150.0,0.00010187,2]
[426478265,1782442164000,-1040.19132479,0.00010131,2]
[426478264,1782442164000,-544.37784376,0.00010129,2]
[426478263,1782442164000,-150.0,0.00010087,2]
[426478262,1782442164000,-305.89086342,0.00010082,2]
[426478261,1782442164000,-250.0,0.00010081,2]
[426478259,1782442164000,-192.56170942,0.00010077,2]
[426478260,1782442164000,-250.0,0.00010078,2]
[426478270,1782442165000,-1879.93066428,0.00010238,2]
[426478268,1782442165000,-1123.28464501,0.00010238,2]
[426478269,1782442165000,-1009.98535499,0.00010238,2]
[426478267,1782442165000,-152.0,0.00010215,2]
[426478272,1782442190000,-2028.04030778,0.00010238,2]
[426478271,1782442190000,-301.0,0.00010238,2]
[426478273,1782442225000,-250.0,0.00010262,2]
[426478285,1782442231000,-477.85,0.00010323,2]
[426478284,1782442231000,-200.0,0.00010287,2]
[426478274,1782442231000,152.0,0.00010262,2]
[426478306,1782442232000,-151.0,0.00010599,2]
[426478323,1782442232000,-166.66,0.00011068,2]
[426478324,1782442232000,-500.0,0.00011085,2]
[426478325,1782442232000,-250.0,0.00011085,2]
[426478326,1782442232000,-652.68,0.00011113,2]
[426478334,1782442232000,-167.19,0.00011643,2]
[426478327,1782442232000,-166.66,0.00011178,2]
[426478328,1782442232000,-250.0,0.00011261,2]
[426478333,1782442232000,-255.0,0.00011561,2]
[426478332,1782442232000,-166.66,0.00011507,2]
[426478331,1782442232000,-166.66,0.00011397,2]
[426478330,1782442232000,-652.68,0.00011371,2]
[426478311,1782442232000,-150.0,0.00010748,2]
[426478336,1782442232000,-160.0,0.00012144,2]
[426478335,1782442232000,-1000.0,0.00011873,2]
[426478347,1782442232000,-500.0,0.00012528,2]
[426478346,1782442232000,-500.0,0.00012528,2]
[426478337,1782442232000,-2878.404,0.00012201,2]
[426478338,1782442232000,-174.59,0.00012201,2]
[426478341,1782442232000,-500.0,0.00012528,2]
[426478340,1782442232000,-153.0,0.00012419,2]
[426478339,1782442232000,-167.16,0.0001237,2]
[426478329,1782442232000,-166.66,0.00011288,2]
[426478308,1782442232000,-150.0,0.00010646,2]
[426478294,1782442232000,-150.0,0.00010441,2]
[426478321,1782442232000,-150.0,0.00010959,2]
[426478286,1782442232000,-178.67,0.00010337,2]
[426478287,1782442232000,-474.01,0.00010337,2]
[426478288,1782442232000,-150.0,0.00010339,2]
[426478289,1782442232000,-167.19,0.00010349,2]
[426478291,1782442232000,-2661.8,0.00010369,2]
[426478292,1782442232000,-248.39,0.0001038,2]
[426478293,1782442232000,-1934.68,0.00010383,2]
[426478299,1782442232000,-97436.57,0.0001054,2]
[426478296,1782442232000,-150.99,0.00010441,2]
[426478290,1782442232000,-203.59,0.00010349,2]
[426478313,1782442232000,-150.0,0.00010851,2]
[426478300,1782442232000,-2651.59,0.00010543,2]
[426478295,1782442232000,-9999.99,0.00010441,2]
[426478298,1782442232000,-150.0,0.00010539,2]
[426478297,1782442232000,-1001.39779085,0.00010539,2]
[426478304,1782442232000,-652.68,0.00010596,2]
[426478318,1782442232000,-216.48047229,0.00010947,2]
[426478315,1782442232000,-652.68,0.00010854,2]
[426478319,1782442232000,-150.0,0.00010953,2]
[426478317,1782442232000,-160.0,0.00010946,2]
[426478320,1782442232000,-166.66,0.00010959,2]
[426478322,1782442232000,-150.0,0.00011028,2]
[426478302,1782442232000,-150.0,0.00010544,2]
[426478345,1782442232000,-500.0,0.00012528,2]
[426478348,1782442232000,-500.0,0.00012528,2]
[426478343,1782442232000,-500.0,0.00012528,2]
[426478376,1782442232000,-500.0,0.00012731,2]
[426478375,1782442232000,-500.0,0.00012731,2]
[426478378,1782442232000,-500.0,0.00012731,2]
[426478377,1782442232000,-500.0,0.00012731,2]
[426478374,1782442232000,-500.0,0.00012731,2]
[426478382,1782442232000,-444.9626539,0.00012731,2]
[426478384,1782442232000,-202.7483288,0.00012731,2]
[426478380,1782442232000,-500.0,0.00012731,2]
[426478383,1782442232000,-500.0,0.00012731,2]
[426478381,1782442232000,-500.0,0.00012731,2]
[426478373,1782442232000,-280.36655625,0.00012731,2]
[426478395,1782442232000,-525.3991477,0.00012732,2]
[426478394,1782442232000,-500.0,0.00012528,2]
[426478385,1782442232000,-150.0,0.00012731,2]
[426478387,1782442232000,-150.0,0.00012731,2]
[426478392,1782442232000,-15363.05334934,0.00012732,2]
[426478388,1782442232000,-150.0,0.00012731,2]
[426478390,1782442232000,-163.20479295,0.00012731,2]
[426478389,1782442232000,-150.0,0.00012731,2]
[426478391,1782442232000,-158630.99024423,0.00012732,2]
[426478393,1782442232000,-29549.13330882,0.00012732,2]
[426478344,1782442232000,-500.0,0.00012528,2]
[426478386,1782442232000,-174.89581229,0.00012731,2]
[426478370,1782442232000,-404.98399453,0.00012731,2]
[426478379,1782442232000,-500.0,0.00012731,2]
[426478363,1782442232000,-453.42380312,0.00012731,2]
[426478342,1782442232000,-500.0,0.00012528,2]
[426478354,1782442232000,-11761.09363944,0.00012633,2]
[426478350,1782442232000,-6992.82647215,0.0001253,2]
[426478359,1782442232000,-501.0,0.00012658,2]
[426478352,1782442232000,-2500.0,0.00012632,2]
[426478367,1782442232000,-200.0,0.00012731,2]
[426478351,1782442232000,-250.0,0.00012567,2]
[426478357,1782442232000,-203.49083539,0.00012633,2]
[426478358,1782442232000,-159.01960225,0.00012633,2]
[426478356,1782442232000,-3731.67448374,0.00012633,2]
[426478353,1782442232000,-1349.64514668,0.00012633,2]
[426478349,1782442232000,-500.0,0.00012528,2]
[426478361,1782442232000,-239.51786293,0.00012722,2]
[426478355,1782442232000,-560.60235221,0.00012633,2]
[426478365,1782442232000,-500.0,0.00012731,2]
[426478369,1782442232000,-500.0,0.00012731,2]
[426478366,1782442232000,-500.0,0.00012731,2]
[426478368,1782442232000,-500.0,0.00012731,2]
[426478362,1782442232000,-300.0,0.00012731,2]
[426478360,1782442232000,-433.0,0.00012678,2]
[426478371,1782442232000,-500.0,0.00012731,2]
[426478372,1782442232000,-500.0,0.00012731,2]
[426478364,1782442232000,-523.72382055,0.00012731,2]
[426478414,1782442238000,-420.26753418,0.00012528,2]
[426478409,1782442238000,-500.0,0.00012528,2]
[426478411,1782442238000,-500.0,0.00012528,2]
[426478412,1782442238000,-500.0,0.00012528,2]
[426478410,1782442238000,-500.0,0.00012528,2]
[426478406,1782442238000,-500.0,0.00012528,2]
[426478400,1782442238000,-160.0,0.00012144,2]
[426478403,1782442238000,-148.51383454,0.00012528,2]
[426478405,1782442238000,-500.0,0.00012528,2]
[426478401,1782442238000,-500.0,0.00012528,2]
[426478402,1782442238000,-351.48616546,0.00012528,2]
[426478408,1782442238000,-495.4317219,0.00012528,2]
[426478404,1782442238000,-500.0,0.00012528,2]
[426478413,1782442238000,-500.0,0.00012528,2]
[426478407,1782442238000,-4.5682781,0.00012528,2]
[426478417,1782442238000,-500.0,0.00012528,2]
[426478431,1782442238000,-150000.0,0.00012732,2]
[426478423,1782442238000,-500.0,0.00012528,2]
[426478424,1782442238000,-500.0,0.00012528,2]
[426478426,1782442238000,-500.0,0.00012528,2]
[426478425,1782442238000,-500.0,0.00012528,2]
[426478421,1782442238000,-500.0,0.00012528,2]
[426478422,1782442238000,-500.0,0.00012528,2]
[426478415,1782442238000,-500.0,0.00012528,2]
[426478420,1782442238000,-500.0,0.00012528,2]
[426478419,1782442238000,-500.0,0.00012528,2]
[426478428,1782442238000,-306.2355239,0.00012633,2]
[426478416,1782442238000,-500.0,0.00012528,2]
[426478427,1782442238000,-500.0,0.00012528,2]
[426478418,1782442238000,-500.0,0.00012528,2]
[426478429,1782442238000,-3542.71410766,0.00012732,2]
[426478471,1782442240000,-90769.5121409,0.00012732,2]
[426478470,1782442240000,-150.0,0.000103,2]
[426478473,1782442240000,-33811.6468553,0.00012732,2]
[426478472,1782442240000,-15691.13636139,0.00012732,2]
[426478480,1782442240000,-60087.03054839,0.00012732,2]
[426478484,1782442242000,-333.07000803,0.00012732,2]
[426478483,1782442242000,-16440.2182756,0.00012732,2]
[426478486,1782442243000,-1164.35091003,0.00012732,2]
[426478485,1782442243000,-524.60980056,0.00012732,2]
[426478487,1782442243000,-423.95581672,0.00012732,2]
[426478488,1782442243000,-4821.12710788,0.00012732,2]
[426478490,1782442243000,-541.54300055,0.00012732,2]
[426478491,1782442243000,-464.76347741,0.00012732,2]
[426478493,1782442243000,-377.64640597,0.00012732,2]
[426478489,1782442243000,-24443.9998,0.00012732,2]
[426478492,1782442243000,-5101.89572745,0.00012732,2]
[426478517,1782442246000,-929.72015834,0.00012732,2]
[426478516,1782442246000,-621.13466327,0.00012732,2]
[426478531,1782442359000,166.12098378,0.00037261,120]
[426478534,1782442360000,166.12098379,0.00037261,120]
[426478533,1782442360000,166.12098378,0.00037261,120]
[426478532,1782442360000,166.12098378,0.00037261,120]
[426478535,1782442361000,48.0,0.00010138,2]
[426478537,1782442453000,153.35,0.00037261,120]
[426478541,1782442628000,500.0,0.00037261,120]
[426478542,1782442628000,512.40724116,0.00037261,120]
[426478546,1782442688000,-150.0,0.00010138,2]
[426478547,1782442688000,-452.0,0.00010138,2]
[426478550,1782442688000,-150.0,0.00010279,2]
[426478549,1782442688000,-177.15677267,0.00010219,2]
[426478551,1782442688000,-250.0,0.00010307,2]
[426478548,1782442688000,-250.0,0.00010178,2]
[426478558,1782442711000,138.97586057,0.00010339,2]
[426478557,1782442711000,590.63358251,0.00010339,2]
[426478556,1782442711000,500.0,0.00010339,2]
[426478554,1782442711000,614.04012748,0.00010339,2]
[426478553,1782442711000,500.0,0.00010339,2]
[426478552,1782442711000,500.0,0.00010339,2]
[426478555,1782442711000,558.70365677,0.00010339,2]
[426478561,1782442802000,150.0,0.00010338,2]
[426478562,1782442891000,155.02825642,0.0001024,2]
[426478563,1782442931000,203.92724228,0.00010239,2]
[426478564,1782442937000,203.92724228,0.0001024,2]
[426478565,1782442943000,203.92724228,0.0001024,2]
[426478568,1782442982000,150.0,0.00010338,2]
[426478571,1782443008000,78.19001674,0.00010133,2]
[426478573,1782443154000,404.51,0.0003,120]
[426478574,1782443231000,311.47663,9.722e-05,2]
[426478575,1782443231000,169.79951646,9.722e-05,2]
[426478577,1782443331000,30000.0,0.0003,120]
[426478578,1782443362000,-2224.53298326,0.00010133,2]
[426478580,1782443362000,-250.0,0.00010184,2]
[426478579,1782443362000,-174.59,0.00010133,2]
[426478582,1782443362000,-150.0,0.00010239,2]
[426478583,1782443362000,-1005.82905501,0.0001024,2]
[426478584,1782443362000,-3249.05073644,0.0001024,2]
[426478581,1782443362000,-162.98423086,0.00010236,2]
[426478585,1782443387000,-823.89532978,0.00010239,2]
[426478586,1782443401000,-6986.37,0.00010239,2]
[426478587,1782443402000,273.0,0.00030137,120]
[426478595,1782443432000,-1008.0592262,0.00010239,2]
[426478591,1782443432000,-665.79967857,0.000102,2]
[426478592,1782443432000,-365.813,0.000102,2]
[426478594,1782443432000,-809.78849363,0.00010239,2]
[426478597,1782443432000,-348.2360598,0.00010239,2]
[426478590,1782443432000,-659.1457183,0.000102,2]
[426478596,1782443432000,-3828.28037571,0.00010239,2]
[426478599,1782443432000,-41365.18527497,0.00010239,2]
[426478601,1782443432000,-33546.71772155,0.00010239,2]
[426478600,1782443432000,-21731.05652099,0.00010239,2]
[426478598,1782443432000,-1649.12316066,0.00010239,2]
[426478593,1782443432000,-1419.87933787,0.000102,2]
[426478653,1782443438000,-7625.0,0.00010239,2]
[426478654,1782443438000,-966.02901049,0.00010239,2]
[426478652,1782443438000,-537.27830085,0.00010239,2]
[426478688,1782443440000,-3998.46807499,0.00010239,2]
[426478690,1782443440000,-486.04383556,0.00010239,2]
[426478691,1782443440000,-1062.72893485,0.00010239,2]
[426478689,1782443440000,-628.5015828,0.00010239,2]
[426478704,1782443443000,-269.53870786,0.00010239,2]
[426478703,1782443443000,-1888.73342418,0.00010239,2]
[426478702,1782443443000,-603.77855773,0.00010239,2]
[426478701,1782443443000,-0.00109048,0.00010239,2]
[426478705,1782443444000,-573.5492,0.00010239,2]
[426478707,1782443444000,-431.110004,0.00010239,2]
[426478706,1782443444000,-1493.52332087,0.00010239,2]
[426478708,1782443444000,-467.9684,0.00010239,2]
[426478710,1782443444000,-425.6300503,0.00010239,2]
[426478709,1782443444000,-1261.35698614,0.00010239,2]
[426478725,1782443446000,-925.0,0.00010239,2]
[426478727,1782443446000,-42704.26,0.00010239,2]
[426478730,1782443446000,-500.0,0.00010239,2]
[426478728,1782443446000,-6104.45776659,0.00010239,2]
[426478729,1782443446000,-8776.52369305,0.00010239,2]
[426478726,1782443446000,-431.885,0.00010239,2]
[426478724,1782443446000,-1180.95304529,0.00010239,2]
[426478733,1782443447000,-6662.00426595,0.00010239,2]
[426478731,1782443447000,-269.94747493,0.00010239,2]
[426478732,1782443447000,-1744.12935004,0.00010239,2]
[426478744,1782443468000,507.12565448,0.00010238,2]
[426478743,1782443468000,500.0,0.00010238,2]
[426478746,1782443468000,500.0,0.00010238,2]
[426478748,1782443468000,500.0,0.00010238,2]
[426478745,1782443468000,500.0,0.00010238,2]
[426478749,1782443468000,391.09255974,0.00010238,2]
[426478751,1782443468000,1248.53369655,7.945e-05,2]
[426478747,1782443468000,429.82808923,0.00010238,2]
[426478750,1782443468000,500.0,0.00010238,2]
[426478752,1782443468000,166.70928245,7.945e-05,2]
[426478754,1782443470000,89.65787662,9.931e-05,2]
[426478753,1782443470000,60.34212338,9.931e-05,2]
[426478758,1782443484000,474.89821833,9.84e-05,2]
[426478755,1782443484000,592.18237238,9.84e-05,2]
[426478759,1782443484000,581.41138648,9.84e-05,2]
[426478757,1782443484000,246.36215825,9.84e-05,2]
[426478756,1782443484000,975.60586456,9.84e-05,2]
[426478760,1782443537000,500.0,0.00037257,120]
[426478761,1782443537000,500.0,0.00037257,120]
[426478764,1782443538000,500.0,0.00037257,120]
[426478763,1782443538000,500.0,0.00037257,120]
[426478762,1782443538000,500.0,0.00037257,120]
[426478767,1782443539000,500.0,0.00037257,120]
[426478766,1782443539000,500.0,0.00037257,120]
[426478765,1782443539000,500.0,0.00037257,120]
[426478768,1782443540000,500.0,0.00037257,120]
[426478769,1782443540000,500.0,0.00037257,120]
[426478770,1782443540000,500.0,0.00037257,120]
[426478773,1782443541000,500.0,0.00037257,120]
[426478772,1782443541000,500.0,0.00037257,120]
[426478771,1782443541000,500.0,0.00037257,120]
[426478776,1782443542000,500.0,0.00037257,120]
[426478775,1782443542000,500.0,0.00037257,120]
[426478774,1782443542000,500.0,0.00037257,120]
[426478777,1782443543000,500.0,0.00037257,120]
[426478785,1782443671000,151.0,9.487e-05,2]
[426478786,1782443671000,49.0,9.487e-05,2]
[426478788,1782443758000,168.66,9.669e-05,2]
[426478792,1782443793000,-1495.08701857,0.00010034,2]
[426478790,1782443793000,-180.15907433,0.00010033,2]
[426478789,1782443793000,-500.0,0.00010033,2]
[426478791,1782443793000,-165.1039071,0.00010033,2]
[426478793,1782443819000,342.05977651,0.00037257,120]
[426478795,1782443869000,-886.32198143,0.00010034,2]
[426478797,1782443869000,-193.5484588,0.00010037,2]
[426478796,1782443869000,-173.691,0.00010034,2]
[426478800,1782443869000,-150.33912882,0.00010136,2]
[426478801,1782443869000,199.8,0.0001013,2]
[426478799,1782443869000,-930.2374958,0.00010136,2]
[426478798,1782443869000,-150.0,0.00010133,2]
[426478802,1782443880000,454.81727711,9.713e-05,2]
[426478803,1782443921000,339.61112505,0.0001064,7]
[426478804,1782443950000,-400.29465804,0.00010137,2]
[426478806,1782443998000,307.0,0.00037287,120]
[426478810,1782444010000,-2519.08703468,0.00010137,2]
[426478809,1782444010000,-2178.67824196,0.00010137,2]
[426478808,1782444010000,-151.89559454,0.00010087,2]
[426478807,1782444010000,-150.33912882,0.00010037,2]
[426478812,1782444012000,-4328.18263468,0.00010137,2]
[426478813,1782444012000,-5000.0,0.00010137,2]
[426478811,1782444012000,-671.81736532,0.00010137,2]
[426478815,1782444013000,-5000.0,0.00010137,2]
[426478814,1782444013000,-5000.0,0.00010137,2]
[426478823,1782444014000,-150.0,0.00010234,2]
[426478816,1782444014000,-694.52186532,0.00010137,2]
[426478817,1782444014000,-248.0,0.00010139,2]
[426478818,1782444014000,-4057.47813468,0.00010139,2]
[426478819,1782444014000,-774.03296532,0.00010139,2]
[426478822,1782444014000,-150.0,0.00010234,2]
[426478820,1782444014000,-302.36842562,0.00010139,2]
[426478821,1782444014000,-165.18892211,0.00010209,2]
[426478825,1782444014000,-500.0,0.00010234,2]
[426478828,1782444014000,-500.0,0.00010234,2]
[426478826,1782444014000,-500.0,0.00010234,2]
[426478827,1782444014000,-500.0,0.00010234,2]
[426478830,1782444014000,-458.40968695,0.00010234,2]
[426478829,1782444014000,-500.0,0.00010234,2]
[426478831,1782444014000,-41.59031305,0.00010234,2]
[426478834,1782444014000,-500.0,0.00010234,2]
[426478832,1782444014000,-500.0,0.00010234,2]
[426478833,1782444014000,-500.0,0.00010234,2]
[426478824,1782444014000,-500.0,0.00010234,2]
[426478835,1782444014000,-500.0,0.00010234,2]
[426478845,1782444015000,-500.0,0.00010234,2]
[426478843,1782444015000,-500.0,0.00010234,2]
[426478842,1782444015000,-41.59031305,0.00010234,2]
[426478841,1782444015000,-458.40968695,0.00010234,2]
[426478838,1782444015000,-500.0,0.00010234,2]
[426478839,1782444015000,-500.0,0.00010234,2]
[426478836,1782444015000,-500.0,0.00010234,2]
[426478837,1782444015000,-500.0,0.00010234,2]
[426478844,1782444015000,-500.0,0.00010234,2]
[426478840,1782444015000,-500.0,0.00010234,2]
[426478848,1782444015000,-500.0,0.00010234,2]
[426478856,1782444015000,-500.0,0.00010234,2]
[426478847,1782444015000,-500.0,0.00010234,2]
[426478849,1782444015000,-500.0,0.00010234,2]
[426478851,1782444015000,-500.0,0.00010234,2]
[426478850,1782444015000,-500.0,0.00010234,2]
[426478852,1782444015000,-500.0,0.00010234,2]
[426478853,1782444015000,-266.38293353,0.00010234,2]
[426478854,1782444015000,-233.61706647,0.00010234,2]
[426478855,1782444015000,-500.0,0.00010234,2]
[426478857,1782444015000,-500.0,0.00010234,2]
[426478858,1782444015000,-3266.38293353,0.00010234,2]
[426478859,1782444015000,-5000.0,0.00010234,2]
[426478846,1782444015000,-192.02675342,0.00010234,2]
[426478860,1782444016000,-5000.0,0.00010234,2]
[426478862,1782444016000,-5000.0,0.00010234,2]
[426478861,1782444016000,-5000.0,0.00010234,2]
[426478866,1782444017000,-5000.0,0.00010234,2]
[426478865,1782444017000,-5000.0,0.00010234,2]
[426478864,1782444017000,5494.42,9.507e-05,2]
[426478863,1782444017000,-5000.0,0.00010234,2]
[426478869,1782444018000,-5000.0,0.00010137,2]
[426478868,1782444018000,-5000.0,0.00010137,2]
[426478867,1782444018000,-5000.0,0.00010234,2]
[426478871,1782444019000,-5000.0,0.00010137,2]
[426478870,1782444019000,-5000.0,0.00010137,2]
[426478874,1782444020000,-5000.0,0.00010137,2]
[426478873,1782444020000,-5000.0,0.00010137,2]
[426478872,1782444020000,-5000.0,0.00010137,2]
[426478875,1782444021000,-5000.0,0.00010137,2]
[426478877,1782444021000,-5000.0,0.00010137,2]
[426478876,1782444021000,-5000.0,0.00010137,2]
[426478878,1782444022000,-5000.0,0.00010137,2]
[426478880,1782444022000,-5000.0,0.00010137,2]
[426478879,1782444022000,-5000.0,0.00010137,2]
[426478882,1782444023000,-5000.0,0.00010137,2]
[426478881,1782444023000,-5000.0,0.00010137,2]
[426478885,1782444024000,-5000.0,0.00010137,2]
[426478884,1782444024000,-5000.0,0.00010137,2]
[426478883,1782444024000,-5000.0,0.00010137,2]